{"text_format":"1","workbook":"xlsx","n_sheets":3,"sheets":["Лист1","Лист2","Лист3"],"not_rendered":{"charts":0,"images":0,"macros":0,"external_links":1,"defined_names":0,"comments":0,"pivot_tables":0},"unopened":[],"bounds":{"document_bytes":16777216,"sheet_cells":100000,"rows_first":2000,"rows_last":500,"rows_between":2000,"halvings":0,"cell_chars":16384,"cell_head_chars":4096},"cells_cut":0,"cells_raw":0,"read":"whole","date_system":"1900"}

{"sheet":"Лист1","index":0,"n_rows":190,"n_cols":65,"rows_kept":190,"cut":false,"hidden":false,"merged":[[34,35,34,44],[34,55,35,63],[34,64,35,72],[189,1,189,6],[28,55,29,63],[28,64,29,72],[30,35,31,54],[30,55,31,63],[30,64,31,72],[32,35,33,44],[32,45,33,54],[32,55,33,63],[32,64,33,72],[24,35,25,44],[24,45,25,48],[24,55,25,63],[24,64,25,72],[26,35,27,44],[26,45,27,48],[26,55,27,63],[26,64,27,72],[20,35,21,44],[20,45,21,48],[20,55,21,63],[20,64,21,72],[22,35,23,44],[22,45,23,48],[22,55,23,63],[22,64,23,72],[16,35,17,44],[16,45,17,48],[16,55,17,63],[16,64,17,72],[18,35,19,44],[18,45,19,48],[18,55,19,72],[12,35,13,44],[12,45,13,48],[12,55,13,63],[12,64,13,72],[14,35,15,44],[14,45,15,48],[14,55,15,63],[14,64,15,72],[8,35,9,41],[8,42,9,54],[8,55,9,63],[8,64,9,72],[10,35,11,41],[10,42,11,54],[10,55,11,63],[10,64,11,72],[0,19,1,19],[2,35,3,72],[4,35,5,41],[4,42,5,54],[4,55,5,72],[6,35,7,41],[6,42,7,54],[6,55,7,63],[6,64,7,72],[0,7,0,13],[0,14,1,14],[0,15,1,15],[0,16,1,16],[0,17,1,17],[0,18,1,18],[0,0,1,0],[0,2,1,2],[0,3,1,3],[0,4,1,4],[0,5,1,5],[0,6,1,6]]}
["Выбор в М/Л","Дата ","Клиент","Контактное лицо","Телефон клиента","Город / нас пункт","Адрес монтажа","Вид работ",null,null,null,null,null,null,"Менеджер","Телефон менеджера ","Монтажная бригада","Статус","Старший бригады","Деньги в кассе","Дата монтажа","Клиент","Контактное лицо","Телефон клиента","Город / нас пункт","Адрес","демонтаж","монтаж","микротик, сигнализация","сотлайн, удаленка, стат IP","ТО","домофон","исправление","менеджер"]
[null,"монтажа",null,null,null,null,null,"Демонтаж","Монтаж","Микротик, сигнализация","Сотлайн, удаленка, стат IP","ТО","Домофон","Исправление",null,null,null,null,null,null,{"$f":"[1]Монтажи!A1","v":"00:00:00"},{"$f":"[1]Монтажи!B1","v":" "},{"$f":"[1]Монтажи!C1","v":" "},{"$f":"[1]Монтажи!D1","v":" "},{"$f":"[1]Монтажи!E1","v":" "},{"$f":"[1]Монтажи!F1","v":" "},{"$f":"[1]Монтажи!G1","v":" "},{"$f":"[1]Монтажи!H1","v":" "},{"$f":"[1]Монтажи!I1","v":" "},{"$f":"[1]Монтажи!J1","v":" "},{"$f":"[1]Монтажи!K1","v":" "},{"$f":"[1]Монтажи!L1","v":" "},{"$f":"[1]Монтажи!M1","v":" "},{"$f":"[1]Монтажи!N1","v":"Александр Георгиевич"}]
[null,null," "," "," "," "," "," "," "," "," "," "," "," ",null,null,null,null,{"$f":"IF(Q3=0,\" \",IF(Q3=\"Бригада 1\",\"Приезжев С. П.\",\"БабинС.Ф.\"))","v":" "},null,{"$f":"[1]Монтажи!O1","v":"00:00:00"},{"$f":"[1]Монтажи!P1","v":" "},{"$f":"[1]Монтажи!Q1","v":" "},{"$f":"[1]Монтажи!R1","v":" "},{"$f":"[1]Монтажи!S1","v":" "},{"$f":"[1]Монтажи!T1","v":" "},{"$f":"[1]Монтажи!U1","v":" "},{"$f":"[1]Монтажи!V1","v":" "},{"$f":"[1]Монтажи!W1","v":" "},{"$f":"[1]Монтажи!X1","v":" "},{"$f":"[1]Монтажи!Y1","v":" "},{"$f":"[1]Монтажи!Z1","v":" "},{"$f":"[1]Монтажи!AA1","v":" "},{"$f":"[1]Монтажи!AB1","v":"Александр Олегович"},null,{"$f":"CONCATENATE(\"Маршрутный лист от \",IFERROR(TEXT(VLOOKUP(\"х\",A3:B189,2,FALSE),\"ДД.ММ.ГГГГГ\"),\"Не выбрана дата монтажа \"))","v":"Маршрутный лист от Не выбрана дата монтажа "}]
[null,null,null,null,null,null,null,null,null,null,null,null,null,null,null,null,null,null," ",null,{"$f":"[1]Монтажи!AC1","v":"00:00:00"},{"$f":"[1]Монтажи!AD1","v":" "},{"$f":"[1]Монтажи!AE1","v":" "},{"$f":"[1]Монтажи!AF1","v":" "},{"$f":"[1]Монтажи!AG1","v":" "},{"$f":"[1]Монтажи!AH1","v":" "},{"$f":"[1]Монтажи!AI1","v":" "},{"$f":"[1]Монтажи!AJ1","v":" "},{"$f":"[1]Монтажи!AK1","v":" "},{"$f":"[1]Монтажи!AL1","v":" "},{"$f":"[1]Монтажи!AM1","v":" "},{"$f":"[1]Монтажи!AN1","v":" "},{"$f":"[1]Монтажи!AO1","v":" "},{"$f":"[1]Монтажи!AP1","v":"Евгений Павлович"}]
[null,null,null,null,null,null,null,null,null,null,null,null,null,null,null,null,null,null," ",null,{"$f":"[1]Монтажи!AQ1","v":"00:00:00"},{"$f":"[1]Монтажи!AR1","v":" "},{"$f":"[1]Монтажи!AS1","v":" "},{"$f":"[1]Монтажи!AT1","v":" "},{"$f":"[1]Монтажи!AU1","v":" "},{"$f":"[1]Монтажи!AV1","v":" "},{"$f":"[1]Монтажи!AW1","v":" "},{"$f":"[1]Монтажи!AX1","v":" "},{"$f":"[1]Монтажи!AY1","v":" "},{"$f":"[1]Монтажи!AZ1","v":" "},{"$f":"[1]Монтажи!BA1","v":" "},{"$f":"[1]Монтажи!BB1","v":" "},{"$f":"[1]Монтажи!BC1","v":" "},{"$f":"[1]Монтажи!BD1","v":"Максим Александрович"},null,"Монтажная бригада",null,null,null,null,null,null,{"$f":"IFERROR(INDEX($A$2:$T$189,MATCH(\"х\",$A$2:$A$189,0),MATCH(AJ5,$A$1:$T$1,0)),\"Не выбрана дата монтажа\")","v":"Не выбрана дата монтажа"},null,null,null,null,null,null,null,null,null,null,null,null,"Информация о клиенте"]
[null,null,null,null,null,null,null,null,null,null,null,null,null,null,null,null,null,null," ",null,{"$f":"[1]Монтажи!BE1","v":"00:00:00"},{"$f":"[1]Монтажи!BF1","v":" "},{"$f":"[1]Монтажи!BG1","v":" "},{"$f":"[1]Монтажи!BH1","v":" "},{"$f":"[1]Монтажи!BI1","v":" "},{"$f":"[1]Монтажи!BJ1","v":" "},{"$f":"[1]Монтажи!BK1","v":" "},{"$f":"[1]Монтажи!BL1","v":" "},{"$f":"[1]Монтажи!BM1","v":" "},{"$f":"[1]Монтажи!BN1","v":" "},{"$f":"[1]Монтажи!BO1","v":" "},{"$f":"[1]Монтажи!BP1","v":" "},{"$f":"[1]Монтажи!BQ1","v":" "},{"$f":"[1]Монтажи!BR1","v":"Вакансия"}]
[null,null,null,null,null,null,null,null,null,null,null,null,null,null,null,null,null,null," ",null,{"$f":"[1]Монтажи!BS1","v":"00:00:00"},{"$f":"[1]Монтажи!BT1","v":" "},{"$f":"[1]Монтажи!BU1","v":" "},{"$f":"[1]Монтажи!BV1","v":" "},{"$f":"[1]Монтажи!BW1","v":" "},{"$f":"[1]Монтажи!BX1","v":" "},{"$f":"[1]Монтажи!BY1","v":" "},{"$f":"[1]Монтажи!BZ1","v":" "},{"$f":"[1]Монтажи!CA1","v":" "},{"$f":"[1]Монтажи!CB1","v":" "},{"$f":"[1]Монтажи!CC1","v":" "},{"$f":"[1]Монтажи!CD1","v":" "},{"$f":"[1]Монтажи!CE1","v":" "},{"$f":"[1]Монтажи!CF1","v":"Евгений Николаевич"},null,"Старший бригады",null,null,null,null,null,null,{"$f":"IFERROR(INDEX($A$2:$T$189,MATCH(\"х\",$A$2:$A$189,0),MATCH(AJ7,$A$1:$T$1,0)),\"Не выбрана дата монтажа\")","v":"Не выбрана дата монтажа"},null,null,null,null,null,null,null,null,null,null,null,null,"Клиент",null,null,null,null,null,null,null,null,{"$f":"IFERROR(INDEX($A$2:$T$189,MATCH(\"х\",$A$2:$A$189,0),MATCH(BD7,$A$1:$T$1,0)),\"Не выбрана дата монтажа\")","v":"Не выбрана дата монтажа"}]
[null,null,null,null,null,null,null,null,null,null,null,null,null,null,null,null,null,null," "]
[null,null,null,null,null,null,null,null,null,null,null,null,null,null,null,null,null,null," ",null,null,null,null,null,null,null,null,null,null,null,null,null,null,null,null,"Адрес отправления",null,null,null,null,null,null,"г. Оренбург, ул. Пикетная 73А.",null,null,null,null,null,null,null,null,null,null,null,null,"Адрес монтажа:",null,null,null,null,null,null,null,null,{"$f":"AQ11","v":"Не выбрана дата монтажа  "}]
[null,null,null,null,null,null,null,null,null,null,null,null,null,null,null,null,null,null," "]
[null,null,null,null,null,null,null,null,null,null,null,null,null,null,null,null,null,null," ",null,null,null,null,null,null,null,null,null,null,null,null,null,null,null,null,"Адрес монтажа",null,null,null,null,null,null,{"$f":"CONCATENATE(IFERROR(INDEX($A$2:$T$189,MATCH(\"х\",$A$2:$A$189,0),MATCH(\"Город / нас пункт\",$A$1:$T$1,0)),\"Не выбрана дата монтажа\"),\" \",IFERROR(INDEX($A$2:$T$189,MATCH(\"х\",$A$2:$A$189,0),MATCH(AJ11,$A$1:$T$1,0)),\" \"))","v":"Не выбрана дата монтажа  "},null,null,null,null,null,null,null,null,null,null,null,null,"Контактное лицо",null,null,null,null,null,null,null,null,{"$f":"IFERROR(INDEX($A$2:$T$189,MATCH(\"х\",$A$2:$A$189,0),MATCH(BD11,$A$1:$T$1,0)),\"Не выбрана дата монтажа\")","v":"Не выбрана дата монтажа"}]
[null,null,null,null,null,null,null,null,null,null,null,null,null,null,null,null,null,null," "]
[null,null,null,null,null,null,null,null,null,null,null,null,null,null,null,null,null,null," ",null,null,null,null,null,null,null,null,null,null,null,null,null,null,null,null,"Начальные показания одометра",null,null,null,null,null,null,null,null,null,45600,null,null,null,null,null,null,null,null,null,"Телефон клиента",null,null,null,null,null,null,null,null,{"$f":"IFERROR(INDEX($A$2:$T$189,MATCH(\"х\",$A$2:$A$189,0),MATCH(BD13,$A$1:$T$1,0)),\"Не выбрана дата монтажа\")","v":"Не выбрана дата монтажа"}]
[null,null,null,null,null,null,null,null,null,null,null,null,null,null,null,null,null,null," "]
[null,null,null,null,null,null,null,null,null,null,null,null,null,null,null,null,null,null," ",null,null,null,null,null,null,null,null,null,null,null,null,null,null,null,null,"Конечные показания одометра",null,null,null,null,null,null,null,null,null,46000,null,null,null,null,null,null,null,null,null,"Менеджер",null,null,null,null,null,null,null,null,{"$f":"IFERROR(INDEX($A$2:$T$189,MATCH(\"х\",$A$2:$A$189,0),MATCH(BD15,$A$1:$T$1,0)),\"Не выбрана дата монтажа\")","v":"Не выбрана дата монтажа"}]
[null,null,null,null,null,null,null,null,null,null,null,null,null,null,null,null,null,null," "]
[null,null,null,null,null,null,null,null,null,null,null,null,null,null,null,null,null,null," ",null,null,null,null,null,null,null,null,null,null,null,null,null,null,null,null,"Расчетный пробег",null,null,null,null,null,null,null,null,null,250,null,null,null,null,null,null,null,null,null,"Телефон менеджера ",null,null,null,null,null,null,null,null,{"$f":"IFERROR(INDEX($A$2:$T$189,MATCH(\"х\",$A$2:$A$189,0),MATCH(BD17,$A$1:$T$1,0)),\"Не выбрана дата монтажа\")","v":"Не выбрана дата монтажа"}]
[null,null,null,null,null,null,null,null,null,null,null,null,null,null,null,null,null,null," "]
[null,null,null,null,null,null,null,null,null,null,null,null,null,null,null,null,null,null," ",null,null,null,null,null,null,null,null,null,null,null,null,null,null,null,null,"Фактический пробег",null,null,null,null,null,null,null,null,null,{"$f":"AT15-AT13","v":400},null,null,null,null,null,null,null,null,null,"Перечень работ"]
[null,null,null,null,null,null,null,null,null,null,null,null,null,null,null,null,null,null," "]
[null,null,null,null,null,null,null,null,null,null,null,null,null,null,null,null,null,null," ",null,null,null,null,null,null,null,null,null,null,null,null,null,null,null,null,"Стоимость ГСМ руб./км.",null,null,null,null,null,null,null,null,null,3.82,null,null,null,null,null,null,null,null,null,"Вид работы",null,null,null,null,null,null,null,null,"Количество"]
[null,null,null,null,null,null,null,null,null,null,null,null,null,null,null,null,null,null," "]
[null,null,null,null,null,null,null,null,null,null,null,null,null,null,null,null,null,null," ",null,null,null,null,null,null,null,null,null,null,null,null,null,null,null,null,"Экономия",null,null,null,null,null,null,null,null,null,{"$f":"IF((AT17-AT19)*AT21<0,\" \",(AT17-AT19)*AT21)","v":" "},null,null,null,null,null,null,null,null,null,"Демонтаж",null,null,null,null,null,null,null,null,{"$f":"CONCATENATE(IFERROR(INDEX($A$3:$T$189,MATCH(\"х\",$A$3:$A$189,0),MATCH(BD23,$A$2:$T$2,0)),\"Не выбрана дата монтажа\"),\" \",\"Камер\")","v":"Не выбрана дата монтажа Камер"}]
[null,null,null,null,null,null,null,null,null,null,null,null,null,null,null,null,null,null," "]
[null,null,null,null,null,null,null,null,null,null,null,null,null,null,null,null,null,null," ",null,null,null,null,null,null,null,null,null,null,null,null,null,null,null,null,"Перерасход",null,null,null,null,null,null,null,null,null,{"$f":"IF((AT19-AT17)*AT21<0,\" \",(AT19-AT17)*AT21)","v":573},null,null,null,null,null,null,null,null,null,"Монтаж",null,null,null,null,null,null,null,null,{"$f":"CONCATENATE(IFERROR(INDEX($A$3:$T$189,MATCH(\"х\",$A$3:$A$189,0),MATCH(BD25,$A$2:$T$2,0)),\"Не выбрана дата монтажа\"),\" \",\"Камер\")","v":"Не выбрана дата монтажа Камер"}]
[null,null,null,null,null,null,null,null,null,null,null,null,null,null,null,null,null,null," "]
[null,null,null,null,null,null,null,null,null,null,null,null,null,null,null,null,null,null," ",null,null,null,null,null,null,null,null,null,null,null,null,null,null,null,null,"Выдать в подотчет",null,null,null,null,null,null,null,null,null,{"$f":"AT17*AT21","v":955},null,null,null,null,null,null,null,null,null,"Микротик, сигнализация",null,null,null,null,null,null,null,null,{"$f":"CONCATENATE(IFERROR(INDEX($A$3:$T$189,MATCH(\"х\",$A$3:$A$189,0),MATCH(BD27,$A$2:$T$2,0)),\"Не выбрана дата монтажа\"),\" \",\"Точка\")","v":"Не выбрана дата монтажа Точка"}]
[null,null,null,null,null,null,null,null,null,null,null,null,null,null,null,null,null,null," "]
[null,null,null,null,null,null,null,null,null,null,null,null,null,null,null,null,null,null," ",null,null,null,null,null,null,null,null,null,null,null,null,null,null,null,null,null,null,null,null,null,null,null,null,null,null,null,null,null,null,null,null,null,null,null,null,"Сотлайн, удаленка, стат IP",null,null,null,null,null,null,null,null,{"$f":"CONCATENATE(IFERROR(INDEX($A$3:$T$189,MATCH(\"х\",$A$3:$A$189,0),MATCH(BD29,$A$2:$T$2,0)),\"Не выбрана дата монтажа\"),\" \",\"Точка\")","v":"Не выбрана дата монтажа Точка"}]
[null,null,null,null,null,null,null,null,null,null,null,null,null,null,null,null,null,null," "]
[null,null,null,null,null,null,null,null,null,null,null,null,null,null,null,null,null,null," ",null,null,null,null,null,null,null,null,null,null,null,null,null,null,null,null,"С маршрутом ознакомлен. Пакет документов получен.",null,null,null,null,null,null,null,null,null,null,null,null,null,null,null,null,null,null,null,"ТО",null,null,null,null,null,null,null,null,{"$f":"CONCATENATE(IFERROR(INDEX($A$3:$T$189,MATCH(\"х\",$A$3:$A$189,0),MATCH(BD31,$A$2:$T$2,0)),\"Не выбрана дата монтажа\"),\" \",\"Объект\")","v":"Не выбрана дата монтажа Объект"}]
[null,null,null,null,null,null,null,null,null,null,null,null,null,null,null,null,null,null," "]
[null,null,null,null,null,null,null,null,null,null,null,null,null,null,null,null,null,null," ",null,null,null,null,null,null,null,null,null,null,null,null,null,null,null,null,null,null,null,null,null,null,null,null,null,null,{"$f":"AQ7","v":"Не выбрана дата монтажа"},null,null,null,null,null,null,null,null,null,"Домофон",null,null,null,null,null,null,null,null,{"$f":"CONCATENATE(IFERROR(INDEX($A$3:$T$189,MATCH(\"х\",$A$3:$A$189,0),MATCH(BD33,$A$2:$T$2,0)),\"Не выбрана дата монтажа\"),\" \",\"Точка\")","v":"Не выбрана дата монтажа Точка"}]
[null,null,null,null,null,null,null,null,null,null,null,null,null,null,null,null,null,null," "]
[null,null,null,null,null,null,null,null,null,null,null,null,null,null,null,null,null,null," ",null,null,null,null,null,null,null,null,null,null,null,null,null,null,null,null,"(подпись)",null,null,null,null,null,null,null,null,null,null,null,null,null,null,null,null,null,null,null,"Исправление",null,null,null,null,null,null,null,null,{"$f":"CONCATENATE(IFERROR(INDEX($A$3:$T$189,MATCH(\"х\",$A$3:$A$189,0),MATCH(BD35,$A$2:$T$2,0)),\"Не выбрана дата монтажа\"),\" \",\"Объект\")","v":"Не выбрана дата монтажа Объект"}]
[null,null,null,null,null,null,null,null,null,null,null,null,null,null,null,null,null,null," "]
[null,null,null,null,null,null,null,null,null,null,null,null,null,null,null,null,null,null," "]
[null,null,null,null,null,null,null,null,null,null,null,null,null,null,null,null,null,null," "]
[null,null,null,null,null,null,null,null,null,null,null,null,null,null,null,null,null,null," "]
[null,null,null,null,null,null,null,null,null,null,null,null,null,null,null,null,null,null," "]
[null,null,null,null,null,null,null,null,null,null,null,null,null,null,null,null,null,null," "]
[null,null,null,null,null,null,null,null,null,null,null,null,null,null,null,null,null,null," "]
[null,null,null,null,null,null,null,null,null,null,null,null,null,null,null,null,null,null," "]
[null,null,null,null,null,null,null,null,null,null,null,null,null,null,null,null,null,null," "]
[null,null,null,null,null,null,null,null,null,null,null,null,null,null,null,null,null,null," "]
[null,null,null,null,null,null,null,null,null,null,null,null,null,null,null,null,null,null," "]
[null,null,null,null,null,null,null,null,null,null,null,null,null,null,null,null,null,null," "]
[null,null,null,null,null,null,null,null,null,null,null,null,null,null,null,null,null,null," "]
[null,null,null,null,null,null,null,null,null,null,null,null,null,null,null,null,null,null," "]
[null,null,null,null,null,null,null,null,null,null,null,null,null,null,null,null,null,null," "]
[null,null,null,null,null,null,null,null,null,null,null,null,null,null,null,null,null,null," "]
[null,null,null,null,null,null,null,null,null,null,null,null,null,null,null,null,null,null," "]
[null,null,null,null,null,null,null,null,null,null,null,null,null,null,null,null,null,null," "]
[null,null,null,null,null,null,null,null,null,null,null,null,null,null,null,null,null,null," "]
[null,null,null,null,null,null,null,null,null,null,null,null,null,null,null,null,null,null," "]
[null,null,null,null,null,null,null,null,null,null,null,null,null,null,null,null,null,null," "]
[null,null,null,null,null,null,null,null,null,null,null,null,null,null," ",null,null,null," "]
[null,null,null,null,null,null,null,null,null,null,null,null,null,null," ",null,null,null," "]
[null,null,null,null,null,null,null,null,null,null,null,null,null,null,null,null,null,null," "]
[null,null,null,null,null,null,null,null,null,null,null,null,null,null,null,null,null,null," "]
[null,null,null,null,null,null,null,null,null,null,null,null,null,null,null,null,null,null," "]
[null,null,null,null,null,null,null,null,null,null,null,null,null,null,null,null,null,null," "]
[null,null,null,null,null,null,null,null,null,null,null,null,null,null,null,null,null,null," "]
[null,null,null,null,null,null,null,null,null,null,null,null,null,null,null,null,null,null," "]
[null,null,null,null,null,null,null,null,null,null,null,null,null,null,null,null,null,null," "]
[null,null,null,null,null,null,null,null,null,null,null,null,null,null,null,null,null,null," "]
[null,null,null,null,null,null,null,null,null,null,null,null,null,null,null,null,null,null," "]
[null,null,null,null,null,null,null,null,null,null,null,null,null,null,null,null,null,null,{"$f":"IF(Q68=0,\" \",IF(Q68=\"Бригада 1\",\"Приезжев С. П.\",\"БабинС.Ф.\"))","v":" "}]
[null,null,null,null,null,null,null,null,null,null,null,null,null,null,null,null,null,null," "]
[null,null,null,null,null,null,null,null,null,null,null,null,null,null,null,null,null,null," "]
[null,null,null,null,null,null,null,null,null,null,null,null,null,null,null,null,null,null," "]
[null,null,null,null,null,null,null,null,null,null,null,null,null,null,null,null,null,null," "]
[null,null,null,null,null,null,null,null,null,null,null,null,null,null,null,null,null,null," "]
[null,null,null,null,null,null,null,null,null,null,null,null,null,null,null,null,null,null," "]
[null,null,null,null,null,null,null,null,null,null,null,null,null,null,null,null,null,null," "]
[null,null,null,null,null,null,null,null,null,null,null,null,null,null,null,null,null,null," "]
[null,null,null,null,null,null,null,null,null,null,null,null,null,null,null,null,null,null," "]
[null,null,null,null,null,null,null,null,null,null,null,null,null,null,null,null,null,null," "]
[null,null,null,null,null,null,null,null,null,null,null,null,null,null,null,null,null,null," "]
[null,null,null,null,null,null,null,null,null,null,null,null,null,null,null,null,null,null," "]
[null,null,null,null,null,null,null,null,null,null,null,null,null,null,null,null,null,null," "]
[null,null,null,null,null,null,null,null,null,null,null,null,null,null,null,null,null,null," "]
[null,null,null,null,null,null,null,null,null,null,null,null,null,null,null,null,null,null," "]
[null,null,null,null,null,null,null,null,null,null,null,null,null,null,null,null,null,null," "]
[null,null,null,null,null,null,null,null,null,null,null,null,null,null,null,null,null,null," "]
[null,null,null,null,null,null,null,null,null,null,null,null,null,null,null,null,null,null," "]
[null,null,null,null,null,null,null,null,null,null,null,null,null,null,null,null,null,null," "]
[null,null,null,null,null,null,null,null,null,null,null,null,null,null,null,null,null,null," "]
[null,null,null,null,null,null,null,null,null,null,null,null,null,null,null,null,null,null," "]
[null,null,null,null,null,null,null,null,null,null,null,null,null,null,null,null,null,null," "]
[null,null,null,null,null,null,null,null,null,null,null,null,null,null,null,null,null,null," "]
[null,null,null,null,null,null,null,null,null,null,null,null,null,null,null,null,null,null," "]
[null,null,null,null,null,null,null,null,null,null,null,null,null,null,null,null,null,null," "]
[null,null,null,null,null,null,null,null,null,null,null,null,null,null,null,null,null,null," "]
[null,null,null,null,null,null,null,null,null,null,null,null,null,null,null,null,null,null," "]
[null,null,null,null,null,null,null,null,null,null,null,null,null,null,null,null,null,null," "]
[null,null,null,null,null,null,null,null,null,null,null,null,null,null,null,null,null,null," "]
[null,null,null,null,null,null,null,null,null,null,null,null,null,null,null,null,null,null," "]
[null,null,null,null,null,null,null,null,null,null,null,null,null,null,null,null,null,null," "]
[null,null,null,null,null,null,null,null,null,null,null,null,null,null,null,null,null,null," "]
[null,null,null,null,null,null,null,null,null,null,null,null,null,null,null,null,null,null," "]
[null,null,null,null,null,null,null,null,null,null,null,null,null,null,null,null,null,null," "]
[null,null,null,null,null,null,null,null,null,null,null,null,null,null,null,null,null,null," "]
[null,null,null,null,null,null,null,null,null,null,null,null,null,null,null,null,null,null," "]
[null,null,null,null,null,null,null,null,null,null,null,null,null,null,null,null,null,null," "]
[null,null,null,null,null,null,null,null,null,null,null,null,null,null,null,null,null,null," "]
[null,null,null,null,null,null,null,null,null,null,null,null,null,null,null,null,null,null," "]
[null,null,null,null,null,null,null,null,null,null,null,null,null,null,null,null,null,null," "]
[null,null,null,null,null,null,null,null,null,null,null,null,null,null,null,null,null,null," "]
[null,null,null,null,null,null,null,null,null,null,null,null,null,null,null,null,null,null," "]
[null,null,null,null,null,null,null,null,null,null,null,null,null,null,null,null,null,null," "]
[null,null,null,null,null,null,null,null,null,null,null,null,null,null,null,null,null,null," "]
[null,null,null,null,null,null,null,null,null,null,null,null,null,null,null,null,null,null," "]
[null,null,null,null,null,null,null,null,null,null,null,null,null,null,null,null,null,null," "]
[null,null,null,null,null,null,null,null,null,null,null,null,null,null,null,null,null,null," "]
[null,null,null,null,null,null,null,null,null,null,null,null,null,null,null,null,null,null," "]
[null,null,null,null,null,null,null,null,null,null,null,null,null,null,null,null,null,null," "]
[null,null,null,null,null,null,null,null,null,null,null,null,null,null,null,null,null,null," "]
[null,null,null,null,null,null,null,null,null,null,null,null,null,null,null,null,null,null," "]
[null,null,null,null,null,null,null,null,null,null,null,null,null,null,null,null,null,null," "]
[null,null,null,null,null,null,null,null,null,null,null,null,null,null,null,null,null,null," "]
[null,null,null,null,null,null,null,null,null,null,null,null,null,null,null,null,null,null," "]
[null,null,null,null,null,null,null,null,null,null,null,null,null,null,null,null,null,null," "]
[null,null,null,null,null,null,null,null,null,null,null,null,null,null,null,null,null,null," "]
[null,null,null,null,null,null,null,null,null,null,null,null,null,null,null,null,null,null," "]
[null,null,null,null,null,null,null,null,null,null,null,null,null,null,null,null,null,null," "]
[null,null,null,null,null,null,null,null,null,null,null,null,null,null,null,null,null,null," "]
[null,null,null,null,null,null,null,null,null,null,null,null,null,null,null,null,null,null," "]
[null,null,null,null,null,null,null,null,null,null,null,null,null,null,null,null,null,null," "]
[null,null,null,null,null,null,null,null,null,null,null,null,null,null,null,null,null,null," "]
[null,null,null,null,null,null,null,null,null,null,null,null,null,null,null,null,null,null," "]
[null,null,null,null,null,null,null,null,null,null,null,null,null,null,null,null,null,null,{"$f":"IF(Q132=0,\" \",IF(Q132=\"Бригада 1\",\"Приезжев С. П.\",\"БабинС.Ф.\"))","v":" "}]
[null,null,null,null,null,null,null,null,null,null,null,null,null,null,null,null,null,null," "]
[null,null,null,null,null,null,null,null,null,null,null,null,null,null,null,null,null,null," "]
[null,null,null,null,null,null,null,null,null,null,null,null,null,null,null,null,null,null," "]
[null,null,null,null,null,null,null,null,null,null,null,null,null,null,null,null,null,null," "]
[null,null,null,null,null,null,null,null,null,null,null,null,null,null,null,null,null,null," "]
[null,null,null,null,null,null,null,null,null,null,null,null,null,null,null,null,null,null," "]
[null,null,null,null,null,null,null,null,null,null,null,null,null,null,null,null,null,null," "]
[null,null,null,null,null,null,null,null,null,null,null,null,null,null,null,null,null,null," "]
[null,null,null,null,null,null,null,null,null,null,null,null,null,null,null,null,null,null," "]
[null,null,null,null,null,null,null,null,null,null,null,null,null,null,null,null,null,null," "]
[null,null,null,null,null,null,null,null,null,null,null,null,null,null,null,null,null,null," "]
[null,null,null,null,null,null,null,null,null,null,null,null,null,null,null,null,null,null," "]
[null,null,null,null,null,null,null,null,null,null,null,null,null,null,null,null,null,null," "]
[null,null,null,null,null,null,null,null,null,null,null,null,null,null,null,null,null,null," "]
[null,null,null,null,null,null,null,null,null,null,null,null,null,null,null,null,null,null," "]
[null,null,null,null,null,null,null,null,null,null,null,null,null,null,null,null,null,null," "]
[null,null,null,null,null,null,null,null,null,null,null,null,null,null,null,null,null,null," "]
[null,null,null,null,null,null,null,null,null,null,null,null,null,null,null,null,null,null," "]
[null,null,null,null,null,null,null,null,null,null,null,null,null,null,null,null,null,null," "]
[null,null,null,null,null,null,null,null,null,null,null,null,null,null,null,null,null,null," "]
[null,null,null,null,null,null,null,null,null,null,null,null,null,null,null,null,null,null," "]
[null,null,null,null,null,null,null,null,null,null,null,null,null,null,null,null,null,null," "]
[null,null,null,null,null,null,null,null,null,null,null,null,null,null,null,null,null,null," "]
[null,null,null,null,null,null,null,null,null,null,null,null,null,null,null,null,null,null," "]
[null,null,null,null,null,null,null,null,null,null,null,null,null,null,null,null,null,null," "]
[null,null,null,null,null,null,null,null,null,null,null,null,null,null,null,null,null,null," "]
[null,null,null,null,null,null,null,null,null,null,null,null,null,null,null,null,null,null," "]
[null,null,null,null,null,null,null,null,null,null,null,null,null,null,null,null,null,null," "]
[null,null,null,null,null,null,null,null,null,null,null,null,null,null,null,null,null,null," "]
[null,null,null,null,null,null,null,null,null,null,null,null,null,null,null,null,null,null," "]
[null,null,null,null,null,null,null,null,null,null,null,null,null,null,null,null,null,null," "]
[null,null,null,null,null,null,null,null,null,null,null,null,null,null,null,null,null,null," "]
[null,null,null,null,null,null,null,null,null,null,null,null,null,null,null,null,null,null," "]
[null,null,null,null,null,null,null,null,null,null,null,null,null,null,null,null,null,null," "]
[null,null,null,null,null,null,null,null,null,null,null,null,null,null,null,null,null,null," "]
[null,null,null,null,null,null,null,null,null,null,null,null,null,null,null,null,null,null," "]
[null,null,null,null,null,null,null,null,null,null,null,null,null,null,null,null,null,null," "]
[null,null,null,null,null,null,null,null,null,null,null,null,null,null,null,null,null,null," "]
[null,null,null,null,null,null,null,null,null,null,null,null,null,null,null,null,null,null," "]
[null,null,null,null,null,null,null,null,null,null,null,null,null,null,null,null,null,null," "]
[null,null,null,null,null,null,null,null,null,null,null,null,null,null,null,null,null,null," "]
[null,null,null,null,null,null,null,null,null,null,null,null,null,null,null,null,null,null," "]
[null,null,null,null,null,null,null,null,null,null,null,null,null,null,null,null,null,null," "]
[null,null,null,null,null,null,null,null,null,null,null,null,null,null,null,null,null,null," "]
[null,null,null,null,null,null,null,null,null,null,null,null,null,null,null,null,null,null," "]
[null,null,null,null,null,null,null,null,null,null,null,null,null,null,null,null,null,null," "]
[null,null,null,null,null,null,null,null,null,null,null,null,null,null,null,null,null,null," "]
[null,null,null,null,null,null,null,null,null,null,null,null,null,null,null,null,null,null," "]
[null,null,null,null,null,null,null,null,null,null,null,null,null,null,null,null,null,null," "]
[null,null,null,null,null,null,null,null,null,null,null,null,null,null,null,null,null,null," "]
[null,null,null,null,null,null,null,null,null,null,null,null,null,null,null,null,null,null," "]
[null,null,null,null,null,null,null,null,null,null,null,null,null,null,null,null,null,null," "]
[null,null,null,null,null,null,null,null,null,null,null,null,null,null,null,null,null,null," "]
[null,null,null,null,null,null,null,null,null,null,null,null,null,null,null,null,null,null," "]
[null,null,null,null,null,null,null,null,null,null,null,null,null,null,null,null,null,null," "]
[null,null,null,null,null,null,null,null,null,null,null,null,null,null,null,null,null,null," "]
[null,null,null,null,null,null,null,null,null,null,null,null,null,null,null,null,null,null," "]
[null,null,null,null,null,null,null,{"$f":"SUM(H3:H189)","v":0},{"$f":"SUM(I3:I189)","v":0},0,0,0,0,0]

{"sheet":"Лист2","index":1,"n_rows":0,"n_cols":0,"rows_kept":0,"cut":false,"hidden":false,"merged":[]}

{"sheet":"Лист3","index":2,"n_rows":0,"n_cols":0,"rows_kept":0,"cut":false,"hidden":false,"merged":[]}